bitfinex/quotes_SOLUSD_20251212
["timestamp","ask_amount","ask_price","bid_price","bid_amount"]
[1765581609607,7.53068755,132.79,132.77,0.66]
[1765581611800,5.42697944,132.78,132.74,0.86]
[1765581612013,5.42697944,132.77,132.74,0.86]
[1765581612399,5.42697944,132.77,132.75,0.66]
[1765581612730,0.66,132.77,132.75,0.66]
[1765581613225,0.66,132.77,132.74,0.86]
[1765581615100,7.53238927,132.76,132.74,0.86]
[1765581615924,18.824709,132.81,132.75,5.42697944]
[1765581616103,7.53012048,132.8,132.76,4.76697944]
[1765581616303,7.53012048,132.8,132.76,5.42697944]
[1765581616534,7.53012048,132.8,132.77,5.42697944]
[1765581616919,7.53012048,132.8,132.78,0.66]
[1765581617120,7.53012048,132.8,132.78,62.86]
[1765581617311,8.19012048,132.8,132.78,62.86]
[1765581628439,7.53012048,132.8,132.78,62.86]
[1765581629521,8.23012048,132.8,132.78,62.86]
[1765581631855,7.53012048,132.8,132.78,62.86]
[1765581632719,8.23012048,132.8,132.78,62.86]
[1765581640649,29.40563582,132.8,132.78,62.2]
[1765581640943,0.7,132.84,132.79,25.02730534]
[1765581641140,8.80994492,132.82,132.76,3.72021414]
[1765581641740,8.80994492,132.8,132.77,0.67]
[1765581642140,16.33967755,132.81,132.77,0.67]
[1765581642326,8.22973263,132.81,132.77,0.67]
[1765581642527,8.22973263,132.81,132.77,3.72029569]
[1765581642731,8.22973263,132.81,132.78,3.72029569]
[1765581642931,8.22973263,132.81,132.78,0.67]
[1765581646955,8.22973263,132.81,132.78,3.72029569]
[1765581651552,0.66,132.8,132.78,3.72029569]
[1765581652939,8.19039217,132.8,132.76,0.72]
[1765581653141,8.19039217,132.8,132.78,3.05029569]
[1765581653759,8.19039217,132.8,132.78,3.77029569]
[1765581655259,8.19039217,132.8,132.78,3.05029569]
[1765581655437,8.19039217,132.8,132.78,3.77029569]
[1765581655636,8.19039217,132.8,132.78,0.72]
[1765581656160,8.19039217,132.8,132.78,3.77029569]
[1765581656359,8.19039217,132.8,132.78,3.05029569]
[1765581656650,7.53039217,132.8,132.78,3.05029569]
[1765581656855,0.66,132.79,132.78,3.05029569]
[1765581657449,0.66,132.79,132.77,3.77029569]
[1765581661556,8.19039217,132.8,132.77,3.77029569]
[1765581665961,0.66,132.79,132.77,3.77029569]
[1765581666150,7.53039217,132.8,132.77,3.77029569]
[1765581666463,0.66,132.79,132.77,0.72]
[1765581666964,0.66,132.79,132.77,62.92]
[1765581667333,8.19039217,132.8,132.77,62.92]
[1765581668362,8.19039217,132.8,132.77,65.97029569]
[1765581672269,7.53039217,132.8,132.77,62.92]
[1765581672467,8.80994492,132.8,132.77,65.25029569]
[1765581672660,0.66,132.84,132.79,3.05029569]
[1765581672966,0.66,132.84,132.82,3.05029569]
[1765581673365,0.66,132.84,132.83,3.05029569]
[1765581673670,16.44696968,132.86,132.83,3.04760346]
[1765581673886,16.33629185,132.87,132.85,3.04760346]
[1765581674173,0.66,132.86,132.85,3.04760346]
[1765581674657,16.44581979,132.88,132.85,3.76760346]
[1765581674853,16.44581979,132.88,132.86,3.04760346]
[1765581675074,7.52671985,132.86,132.82,7.52894921]
[1765581675251,8.80994492,132.84,132.81,3.04760346]
[1765581675446,0.66,132.83,132.81,3.76760346]
[1765581676565,0.66,132.83,132.81,0.72]
[1765581677257,8.18867106,132.83,132.81,0.72]
[1765581677966,8.18867106,132.83,132.81,3.76760346]
[1765581678162,8.26,132.85,132.82,3.04760346]
[1765581678359,8.9,132.86,132.83,3.04760346]
[1765581678664,8.9,132.86,132.83,3.76760346]
[1765581679055,8.24741589,132.85,132.82,3.04760346]
[1765581679570,8.24741589,132.85,132.82,3.74760346]
[1765581679766,0.72,132.84,132.82,0.7]
[1765581679944,0.72,132.84,132.81,3.74760346]
[1765581681571,8.24824165,132.84,132.81,65.94760346]
[1765581681882,7.52739054,132.85,132.83,4.76120946]
[1765581682177,7.52739054,132.85,132.84,4.76120946]
[1765581682368,8.22739054,132.85,132.83,5.42120946]
[1765581682568,8.22739054,132.85,132.82,5.42120946]
[1765581683355,8.22739054,132.85,132.83,0.66]
[1765581684562,8.22739054,132.85,132.82,5.42120946]
[1765581685370,8.22739054,132.85,132.83,0.66]
[1765581691787,8.22739054,132.85,132.83,5.42120946]
[1765581693470,8.22739054,132.85,132.83,0.66]
[1765581693668,8.22739054,132.85,132.83,5.42120946]
[1765581704704,8.22739054,132.85,132.83,0.66]
[1765581704873,8.22739054,132.85,132.83,5.42120946]
[1765581706892,8.22739054,132.85,132.83,5.42154818]
[1765581710196,7.52739054,132.85,132.84,4.76154818]
[1765581710399,8.22739054,132.85,132.84,4.76154818]
[1765581711202,15.76693406,132.86,132.84,4.76154818]
[1765581711380,15.76693406,132.86,132.84,5.42154818]
[1765581711704,15.76693406,132.86,132.85,4.76154818]
[1765581712096,16.47693406,132.86,132.85,4.76154818]
[1765581712702,7.52502069,132.89,132.85,12.94882274]
[1765581712876,7.52502069,132.89,132.88,4.76154818]
[1765581713079,8.23502069,132.89,132.87,4.76154818]
[1765581713595,8.23502069,132.89,132.87,5.42154818]
[1765581713769,8.23502069,132.89,132.88,4.76154818]
[1765581714174,8.23502069,132.89,132.87,5.42154818]
[1765581727922,8.23502069,132.89,132.87,0.66]
[1765581728089,8.23502069,132.89,132.87,5.42154818]
[1765581730819,8.23502069,132.89,132.86,62.2]
[1765581731019,7.52502069,132.89,132.87,4.76154818]
[1765581731321,0.71,132.88,132.86,62.2]
[1765581731819,8.80994492,132.87,132.86,62.2]
[1765581732113,17.04994492,132.87,132.85,4.76154818]
[1765581732296,8.24,132.87,132.85,4.76154818]
[1765581732489,8.24,132.87,132.86,0.66]
[1765581733320,16.47622301,132.87,132.85,5.42154818]
[1765581735224,16.47622301,132.87,132.85,4.76154818]
[1765581737122,16.47622301,132.87,132.85,5.42154818]
[1765581737521,16.47622301,132.87,132.85,5.42052425]
[1765581742020,16.47622301,132.87,132.85,0.66]
[1765581750918,16.47622301,132.87,132.85,3.70688722]
[1765581754841,16.47622301,132.87,132.85,0.66]
[1765581755837,16.47622301,132.87,132.84,65.24688722]
[1765581756016,16.47622301,132.87,132.84,65.94688722]
[1765581758122,0.66,132.86,132.84,65.94688722]
[1765581758450,16.42622301,132.87,132.84,65.94688722]
[1765581760129,16.42622301,132.87,132.85,0.7]
[1765581769740,16.42622301,132.87,132.84,65.9469403]
[1765581770146,16.42622301,132.87,132.84,65.2469403]
[1765581770329,16.42622301,132.87,132.85,0.7]
[1765581772138,8.23684643,132.86,132.84,62.2]
[1765581772352,8.23684643,132.86,132.82,62.92]
[1765581772524,0.71,132.85,132.82,62.92]
[1765581772724,0.71,132.85,132.82,65.2469403]
[1765581772933,0.71,132.85,132.83,0.72]
[1765581773247,0.71,132.85,132.82,65.9669403]
[1765581773622,0.71,132.85,132.83,3.7669403]
[1765581773950,8.23763181,132.85,132.83,3.7669403]
[1765581774849,8.23763181,132.85,132.83,0.72]
[1765581775025,7.52763181,132.85,132.84,3.7669403]
[1765581777329,16.47698866,132.86,132.84,3.7669403]
[1765581777546,15.76698866,132.86,132.85,0.72]
[1765581777731,15.76698866,132.86,132.85,3.0469403]
[1765581778851,15.76698866,132.86,132.84,3.7669403]
[1765581779050,16.47698866,132.86,132.84,3.7669403]
[1765581780340,8.23698866,132.86,132.84,3.7669403]
[1765581783857,8.23698866,132.86,132.83,3.7669403]
[1765581784245,0.71,132.85,132.83,3.7669403]
[1765581785257,16.47698866,132.86,132.83,3.7669403]
[1765581785453,8.23698866,132.86,132.83,3.7669403]
[1765581786655,8.23698866,132.86,132.84,3.0469403]
[1765581788057,16.47698866,132.86,132.84,3.7669403]
[1765581788558,8.23698866,132.86,132.84,3.7669403]
[1765581788857,16.47698866,132.86,132.84,3.7669403]
[1765581789050,16.47698866,132.86,132.84,3.0469403]
[1765581790356,8.23698866,132.86,132.84,3.0469403]
[1765581790550,16.47698866,132.86,132.84,3.0469403]
[1765581791754,0.71,132.85,132.83,3.7669403]
[1765581792059,16.47698866,132.86,132.83,3.7669403]
[1765581792360,0.71,132.85,132.83,3.7669403]
[1765581792955,16.47698866,132.86,132.83,3.7669403]
[1765581793563,16.47698866,132.86,132.84,3.7669403]
[1765581799765,8.23698866,132.86,132.84,3.7669403]
[1765581802765,8.23698866,132.86,132.84,3.76693923]
[1765581803868,8.23698866,132.86,132.84,5.48086155]
[1765581809272,8.23698866,132.86,132.83,0.66]
[1765581809447,8.23698866,132.86,132.84,5.42086155]
[1765581809970,0.67,132.85,132.82,62.86]
[1765581810178,0.67,132.85,132.82,62.2]
[1765581810365,8.80994492,132.84,132.8,62.86]
[1765581810558,8.80994492,132.84,132.81,4.76086155]
[1765581810750,0.67,132.83,132.81,5.42086155]
[1765581812070,8.19878968,132.83,132.81,5.42086155]
[1765581812274,8.19878968,132.83,132.81,4.76086155]
[1765581812771,8.19878968,132.83,132.8,62.86]
[1765581813076,8.19878968,132.83,132.8,67.62086155]
[1765581814261,8.19878968,132.83,132.81,4.76086155]
[1765581814470,8.80994492,132.84,132.8,62.86]
[1765581814471,8.19898659,132.82,132.8,66.96086155]
[1765581814648,8.19898659,132.82,132.79,80.66795275]
[1765581814966,0.67,132.81,132.79,67.62086155]
[1765581819673,8.19957491,132.81,132.79,67.62086155]
[1765581819968,8.19957491,132.81,132.79,66.96086155]
[1765581820173,8.19957491,132.81,132.79,67.62086155]
[1765581820476,7.52957491,132.81,132.79,67.62086155]
[1765581821161,0.67,132.81,132.79,67.62086155]
[1765581821675,7.52898659,132.82,132.79,67.62086155]
[1765581821874,8.19898659,132.82,132.79,67.62086155]
[1765581822676,8.19956093,132.81,132.79,67.62086155]
[1765581823373,8.19956093,132.81,132.79,62.86]
[1765581823576,0.67,132.8,132.78,66.96086155]
[1765581823781,0.67,132.8,132.78,67.62086155]
[1765581825252,8.20051432,132.8,132.78,67.62086155]
[1765581826851,8.20051432,132.8,132.78,62.86]
[1765581827057,0.67,132.79,132.76,0.66]
[1765581827464,0.67,132.79,132.76,5.42086155]
[1765581827665,0.67,132.79,132.75,0.66]
[1765581827885,0.67,132.79,132.75,5.42086155]
[1765581829159,7.5312547,132.78,132.75,5.42086155]
[1765581829561,8.2012547,132.78,132.75,5.42086155]
[1765581829882,8.2012547,132.78,132.76,4.76086155]
[1765581830563,35.16735134,132.79,132.76,4.76086155]
[1765581830764,0.68,132.77,132.76,4.76086155]
[1765581832774,8.21208263,132.77,132.75,5.42086155]
[1765581833175,8.21208263,132.77,132.75,5.42721498]
[1765581836188,8.21208263,132.77,132.75,67.62721498]
[1765581838081,0.68,132.76,132.74,0.2]
[1765581840291,7.53295668,132.75,132.74,4.96721498]
[1765581840464,7.53295668,132.75,132.74,0.2]
[1765581840669,8.21295668,132.75,132.74,0.2]
[1765581841184,17.0229016,132.75,132.74,0.2]
[1765581845998,25.2829016,132.75,132.74,0.2]
[1765581846667,25.56722474,132.75,132.74,0.2]
[1765581846872,33.35228271,132.75,132.74,1e-08]
[1765581847172,28.58506773,132.75,132.74,1e-08]
[1765581847384,28.30074459,132.75,132.74,1e-08]
[1765581847573,25.2829016,132.75,132.74,1e-08]
[1765581848279,25.56722474,132.75,132.74,1e-08]
[1765581848702,30.33443972,132.75,132.74,1e-08]
[1765581854005,35.1016547,132.75,132.74,1e-08]
[1765581858703,30.33443972,132.75,132.74,1e-08]
[1765581859394,30.33443972,132.75,132.74,0.67000001]
[1765581859395,24.6029016,132.75,132.74,0.67000001]
[1765581859701,24.6029016,132.75,132.74,1e-08]
[1765581860773,25.3129016,132.75,132.74,1e-08]
[1765581861098,24.6029016,132.75,132.74,1e-08]
[1765581865295,25.3129016,132.75,132.74,1e-08]
[1765581867207,28.65007197,132.75,132.74,1e-08]
[1765581867509,31.66791496,132.75,132.74,1e-08]
[1765581883620,16.3429016,132.75,132.74,0.72000001]
[1765581883832,24.6029016,132.75,132.74,0.72000001]
[1765581884903,7.5312547,132.78,132.74,3.77284724]
[1765581885119,75.0,132.83,132.74,3.77284724]
[1765581885120,8.23841978,132.83,132.77,3.05284723]
[1765581885312,8.23841978,132.83,132.79,3.05284723]
[1765581885313,8.80994492,132.81,132.79,3.05284723]
[1765581885511,8.26,132.82,132.79,3.05284723]
[1765581885716,8.26,132.82,132.8,0.72]
[1765581885917,8.80994492,132.81,132.8,0.72]
[1765581886114,16.33949841,132.81,132.8,0.72]
[1765581886521,7.52955349,132.81,132.8,0.72]
[1765581891206,8.80994492,132.8,132.77,0.67]
[1765581891418,8.26,132.79,132.77,0.67]
[1765581891616,8.96,132.79,132.77,0.67]
[1765581892034,8.80994492,132.78,132.74,1e-08]
[1765581892226,8.80994492,132.78,132.75,0.67]
[1765581893235,7.53182194,132.77,132.75,0.67]
[1765581894232,16.3414239,132.78,132.75,3.72284723]
[1765581894610,16.3414239,132.78,132.76,0.67]
[1765581895739,7.53147898,132.78,132.76,3.72284723]
[1765581896242,7.53147898,132.78,132.77,0.67]
[1765581897036,7.53091327,132.79,132.77,3.72057134]
[1765581897424,7.53091327,132.79,132.78,0.67]
[1765581900331,17.06994492,132.8,132.78,3.72057134]
[1765581900332,15.79026396,132.8,132.78,3.72057134]
[1765581900735,15.79026396,132.8,132.79,0.67]
[1765581901532,9.50994492,132.79,132.76,62.87]
[1765581901737,8.80994492,132.79,132.77,0.67]
[1765581901943,8.96,132.78,132.76,62.2]
[1765581902145,8.80994492,132.77,132.76,62.2]
[1765581902345,16.34176686,132.77,132.76,62.2]
[1765581902838,16.34176686,132.77,132.75,0.67]
[1765581905735,16.34176686,132.77,132.75,3.72057134]
[1765581906047,7.53182194,132.77,132.75,3.72057134]
[1765581906223,27.78886779,132.78,132.76,3.72057134]
[1765581906224,7.53135576,132.78,132.76,3.72057134]
[1765581906625,7.53135576,132.78,132.77,0.67]
[1765581911951,7.53135576,132.78,132.76,62.87]
[1765581912650,7.53135576,132.78,132.76,62.2]
[1765581912852,7.53135576,132.78,132.77,0.67]
[1765581916426,7.53135576,132.78,132.76,62.2]
[1765581916627,7.53135576,132.78,132.76,62.87]
[1765581918446,7.53135576,132.78,132.76,62.2]
[1765581918746,7.53135576,132.78,132.77,0.67]
[1765581922653,6.59239761,132.78,132.77,0.67]
[1765581930868,6.59239761,132.78,132.76,0.7]
[1765581931059,6.59239761,132.78,132.76,62.9]
[1765581935262,6.59239761,132.78,132.77,0.7]
[1765581938474,6.59239761,132.78,132.76,5.46695611]
[1765581943076,6.59239761,132.78,132.76,67.66695611]
[1765581943783,26.12053437,132.78,132.76,67.66695611]
[1765581943973,26.12053437,132.78,132.76,62.9]
[1765581945276,17.76994492,132.77,132.76,62.2]
[1765581945582,22.53690103,132.77,132.74,1e-08]
[1765581945782,8.80994492,132.75,132.74,1e-08]
[1765581945981,17.06994492,132.75,132.74,1e-08]
[1765581946169,17.76994492,132.75,132.74,1e-08]
[1765581946570,25.3029016,132.75,132.74,1e-08]
[1765581948294,25.58722474,132.75,132.74,1e-08]
[1765581948461,30.35418085,132.75,132.74,1e-08]
[1765581951258,25.3029016,132.75,132.74,1e-08]
[1765581961675,30.35803441,132.75,132.74,1e-08]
[1765581962772,33.3758774,132.75,132.74,1e-08]
[1765581965798,9.81426806,132.74,132.73,1e-08]
[1765581965995,14.58507773,132.74,132.73,1e-08]
[1765581966495,17.60337616,132.74,132.73,1e-08]
[1765581966802,0.28432314,132.72,132.71,1e-08]
[1765581967103,17.35426806,132.72,132.71,1e-08]
[1765581967284,18.07426806,132.72,132.71,1e-08]
[1765581967684,25.60892749,132.72,132.71,1e-08]
[1765581967890,25.32460435,132.72,132.71,1e-08]
[1765581968279,24.60460435,132.72,132.71,1e-08]
[1765581969502,24.88892749,132.72,132.71,1e-08]
[1765581969692,25.60892749,132.72,132.71,1e-08]
[1765581971298,25.32460435,132.72,132.71,1e-08]
[1765581971504,24.60460435,132.72,132.71,1e-08]
[1765581979101,25.31460435,132.72,132.71,1e-08]
[1765581993829,28.36913414,132.72,132.71,1e-08]
[1765581994020,28.65345728,132.72,132.71,1e-08]
[1765581994424,25.59892749,132.72,132.71,1e-08]
[1765581999612,28.65345728,132.72,132.71,1e-08]
[1765582002129,25.59892749,132.72,132.71,1e-08]
[1765582006235,44.43557607,132.72,132.67,60.81000001]
[1765582006946,34.63130801,132.72,132.68,3.05452979]
[1765582007120,34.63130801,132.72,132.69,3.05452979]
[1765582008042,34.63130801,132.72,132.68,3.05452979]
[1765582008227,34.63130801,132.72,132.68,3.59452979]
[1765582008429,34.63130801,132.72,132.69,0.54]
[1765582010643,34.63130801,132.72,132.69,3.59452979]
[1765582011142,34.63130801,132.72,132.69,64.4045298]
[1765582011327,34.63130801,132.72,132.7,0.54]
[1765582013921,34.63130801,132.72,132.7,3.59452979]
[1765582016835,34.63130801,132.72,132.7,3.05452979]
[1765582017145,34.63130801,132.72,132.7,3.59452979]
[1765582017941,7.53465943,132.72,132.71,3.59452979]
[1765582018125,7.53422448,132.73,132.71,3.59452979]
[1765582018331,7.53422448,132.73,132.72,3.59452979]
[1765582020545,15.79374148,132.74,132.72,3.59452979]
[1765582020742,15.79374148,132.74,132.73,3.59452979]
[1765582021338,7.53374148,132.74,132.73,3.59452979]
[1765582022545,7.53295668,132.75,132.73,3.59452979]
[1765582022846,7.53295668,132.75,132.74,3.59452979]
[1765582023950,7.53295668,132.75,132.74,3.59190649]
[1765582025440,15.79253019,132.76,132.74,65.79190649]
[1765582025632,7.53253019,132.76,132.75,3.59190649]
[1765582026766,7.53182194,132.77,132.75,3.59190649]
[1765582026932,7.53182194,132.77,132.76,3.59190649]
[1765582030236,7.53182194,132.77,132.76,3.05190649]
[1765582031550,7.53182194,132.77,132.76,3.59190649]
[1765582035763,7.53182194,132.77,132.76,0.54]
[1765582036261,35.84132172,132.77,132.74,3.59190649]
[1765582036484,17.73994492,132.76,132.73,3.59190649]
[1765582037862,7.53295668,132.75,132.73,65.79190649]
[1765582041161,7.53295668,132.75,132.74,0.54]
[1765582042062,35.90157352,132.76,132.74,3.59190649]
[1765582042063,15.79257998,132.76,132.74,3.59190649]
[1765582042366,15.79257998,132.76,132.75,3.05190649]
[1765582042562,15.79257998,132.76,132.75,3.59190649]
[1765582043847,15.79257998,132.76,132.75,65.79190649]
[1765582049872,15.79257998,132.76,132.75,67.5077389]
[1765582050363,15.79257998,132.76,132.75,62.2]
[1765582050566,16.47257998,132.76,132.75,66.9677389]
[1765582050878,15.79257998,132.76,132.75,62.2]
[1765582051345,15.79257998,132.76,132.75,62.74]
[1765582051845,15.79257998,132.76,132.75,67.5077389]
[1765582053239,15.79257998,132.76,132.75,66.9677389]
[1765582053444,15.79257998,132.76,132.75,67.5077389]
[1765582055850,15.79257998,132.76,132.75,67.50744933]
[1765582063280,16.47257998,132.76,132.75,62.2]
[1765582067578,16.47257998,132.76,132.74,62.74]
[1765582069387,16.47257998,132.76,132.74,67.50744933]
[1765582070989,15.79257998,132.76,132.75,5.30744933]
[1765582072981,15.79257998,132.76,132.75,4.76744933]
[1765582073489,15.79257998,132.76,132.75,66.96744933]
[1765582073685,16.49257998,132.76,132.75,62.2]
[1765582074263,25.3025249,132.76,132.75,62.2]
[1765582079495,44.13349808,132.76,132.73,66.96744933]
[1765582079697,0.7,132.75,132.73,66.96744933]
[1765582080375,0.7,132.75,132.73,67.50744933]
[1765582080574,0.7,132.75,132.73,66.96744933]
[1765582081191,0.7,132.75,132.73,67.50744933]
[1765582081525,7.53352418,132.74,132.73,67.50744933]
[1765582087601,7.53352418,132.74,132.73,67.50906933]
[1765582089798,35.9009181,132.76,132.73,5.30906933]
[1765582089799,15.79261044,132.76,132.73,5.30906933]
[1765582089979,15.79261044,132.76,132.75,4.76906933]
[1765582090608,15.79261044,132.76,132.74,5.30906933]
[1765582090902,16.49261044,132.76,132.74,4.76906933]
[1765582092397,16.49261044,132.76,132.74,5.30906933]
[1765582094610,16.49261044,132.76,132.74,4.76906933]
[1765582095213,16.49261044,132.76,132.74,5.30906933]
[1765582097709,15.79261044,132.76,132.74,5.30906933]
[1765582098514,16.49261044,132.76,132.74,5.30906933]
[1765582098696,0.7,132.75,132.73,4.76906933]
[1765582099695,8.23344965,132.75,132.73,4.76906933]
[1765582100302,8.23344965,132.75,132.73,67.50906933]
[1765582102927,8.23344965,132.75,132.73,62.74]
[1765582106818,0.71,132.74,132.73,62.2]
[1765582107202,17.77994492,132.74,132.71,66.96906933]
[1765582107528,17.77994492,132.74,132.71,62.2]
[1765582107821,0.71,132.73,132.71,62.2]
[1765582109721,7.53465943,132.72,132.71,62.2]
[1765582109920,7.53465943,132.72,132.71,62.74]
[1765582110304,7.53465943,132.72,132.71,67.50906933]
[1765582110826,7.53465943,132.72,132.71,62.74]
[1765582111129,7.53465943,132.72,132.71,67.50906933]
[1765582111799,16.34403668,132.73,132.71,62.2]
[1765582112002,0.71,132.72,132.7,3.05324957]
[1765582112207,8.97,132.72,132.7,62.2]
[1765582112618,0.71,132.71,132.7,62.2]
[1765582112924,8.97,132.72,132.7,62.2]
[1765582113113,9.51994492,132.71,132.68,3.05324957]
[1765582113501,8.97,132.7,132.68,3.59324957]
[1765582114027,8.24636295,132.69,132.67,65.25324957]
[1765582114206,8.24636295,132.69,132.66,3.05324957]
[1765582114407,8.97,132.68,132.66,3.05324957]
[1765582114614,8.97,132.68,132.66,3.59324957]
[1765582116127,7.53749905,132.67,132.65,3.25324957]
[1765582116427,8.24749905,132.67,132.65,3.25324957]
[1765582117003,8.24749905,132.67,132.65,3.79324957]
[1765582119129,17.77994492,132.66,132.65,0.2]
[1765582119340,40.42572714,132.66,132.65,0.2]
[1765582120224,8.26,132.66,132.65,0.74]
[1765582120435,8.26,132.66,132.65,3.79324957]
[1765582121130,15.79806723,132.66,132.65,3.79540161]
[1765582121924,7.53806723,132.66,132.65,3.79540161]
[1765582124144,7.53806723,132.66,132.65,65.99540161]
[1765582128238,15.7976881,132.67,132.65,65.99540161]
[1765582128436,15.7976881,132.67,132.66,3.59540161]
[1765582128940,7.5376881,132.67,132.66,3.59540161]
[1765582133033,7.5376881,132.67,132.66,65.79540161]
[1765582134114,7.5376881,132.67,132.66,65.25540161]
[1765582134744,7.5376881,132.67,132.66,65.79540161]
[1765582135417,7.5376881,132.67,132.66,62.74]
[1765582135618,7.5376881,132.67,132.66,65.79540161]
[1765582136856,7.5376881,132.67,132.66,65.25540161]
[1765582139549,8.2276881,132.67,132.66,65.25540161]
[1765582139926,8.2276881,132.67,132.66,62.2]
[1765582143850,8.2276881,132.67,132.65,3.25540161]
[1765582144842,8.2276881,132.67,132.65,3.79540161]
[1765582145050,7.5376881,132.67,132.65,3.79540161]
[1765582145238,8.2276881,132.67,132.65,3.79540161]
[1765582146653,8.2276881,132.67,132.65,0.74]
[1765582146840,0.69,132.66,132.65,0.2]
[1765582147030,17.75994492,132.66,132.65,0.2]
[1765582149045,25.29801215,132.66,132.65,0.2]
[1765582153159,25.58233529,132.66,132.65,0.2]
[1765582153654,28.60245684,132.66,132.65,0.2]
[1765582155038,24.60801215,132.66,132.65,0.2]
[1765582155352,24.60801215,132.66,132.65,3.25691412]
[1765582155851,25.29801215,132.66,132.65,3.25691412]
[1765582156857,25.29801215,132.66,132.65,0.2]
[1765582157034,25.29801215,132.66,132.65,3.25691412]
[1765582157548,15.79806723,132.66,132.65,3.25691412]
[1765582157754,15.79806723,132.66,132.65,3.79691412]
[1765582159154,8.26,132.66,132.65,3.79691412]
[1765582159451,7.53764841,132.67,132.65,3.79691412]
[1765582159652,7.53764841,132.67,132.66,3.59691412]
[1765582165563,7.53764841,132.67,132.66,65.79691412]
[1765582173950,17.05759333,132.67,132.66,62.2]
[1765582176894,22.11591679,132.67,132.65,0.2]
[1765582177069,18.06426806,132.66,132.65,0.2]
[1765582177274,30.37633561,132.66,132.65,0.2]
[1765582177473,30.37633561,132.66,132.65,1e-08]
[1765582177686,33.39645716,132.66,132.65,1e-08]
[1765582177890,28.62245684,132.66,132.65,1e-08]
[1765582178175,25.60233529,132.66,132.65,1e-08]
[1765582178894,33.39645716,132.66,132.65,1e-08]
[1765582183977,33.40038167,132.66,132.65,1e-08]
[1765582184198,28.62245684,132.66,132.65,1e-08]
[1765582184405,33.40038167,132.66,132.65,1e-08]
[1765582189783,30.38026012,132.66,132.65,1e-08]
[1765582190193,33.40038167,132.66,132.65,1e-08]
[1765582192405,30.38026012,132.66,132.65,1e-08]
[1765582195491,33.40038167,132.66,132.65,1e-08]
[1765582195689,30.38026012,132.66,132.65,1e-08]
[1765582196808,33.40038167,132.66,132.65,1e-08]
[1765582197114,30.38026012,132.66,132.65,1e-08]
[1765582197412,33.40038167,132.66,132.65,1e-08]
[1765582209721,46.44747287,132.66,132.65,1e-08]
[1765582215944,46.44831209,132.66,132.65,1e-08]
[1765582221231,46.44831209,132.66,132.64,1e-08]
[1765582221232,9.09426806,132.65,132.64,1e-08]
[1765582221549,14.57303211,132.65,132.64,1e-08]
[1765582221934,9.79426806,132.65,132.64,1e-08]
[1765582222136,14.57303211,132.65,132.64,1e-08]
[1765582223551,22.11166761,132.65,132.64,1e-08]
[1765582224452,0.7,132.64,132.63,1e-08]
[1765582224624,0.28432314,132.62,132.61,1e-08]
[1765582224828,22.83303211,132.62,132.61,1e-08]
[1765582225061,22.13303211,132.62,132.61,1e-08]
[1765582225350,17.35426806,132.62,132.61,1e-08]
[1765582225549,29.67337293,132.62,132.61,1e-08]
[1765582226332,30.37337293,132.62,132.61,1e-08]
[1765582228634,24.61028574,132.62,132.61,0.54000001]
[1765582232232,24.61028574,132.62,132.61,1e-08]
[1765582232641,24.61028574,132.62,132.61,0.54000001]
[1765582233267,24.61028574,132.62,132.61,1e-08]
[1765582233945,24.61028574,132.62,132.61,0.54000001]
[1765582234368,30.08904979,132.62,132.61,1e-08]
[1765582235040,29.38904979,132.62,132.61,1e-08]
[1765582236060,27.66999664,132.62,132.61,1e-08]
[1765582237859,24.61028574,132.62,132.61,1e-08]
[1765582238159,24.61028574,132.62,132.61,0.54000001]
[1765582242471,24.61028574,132.62,132.61,1e-08]
[1765582254263,7.53998005,132.63,132.61,3.59924284]
[1765582254588,7.53998005,132.63,132.62,3.05924283]
[1765582254762,7.53998005,132.63,132.62,3.59924283]
[1765582255790,7.53998005,132.63,132.62,0.54]
[1765582260864,7.53926152,132.64,132.62,65.79924283]
[1765582261069,7.53926152,132.64,132.63,3.05924283]
[1765582261270,7.53926152,132.64,132.63,0.54]
[1765582262495,7.5386355,132.65,132.63,0.54]
[1765582262680,7.5386355,132.65,132.63,62.74]
[1765582262992,7.5386355,132.65,132.64,0.54]
[1765582265694,8.26,132.7,132.64,3.59924283]
[1765582266000,8.26,132.7,132.67,3.05924283]
[1765582266384,8.26,132.7,132.68,0.54]
[1765582267372,34.63556052,132.7,132.68,0.54]
[1765582271403,34.63556052,132.7,132.68,3.59924283]